[Event "Bangabandhu Premier Div League 2023-24"]
[Site "Dhaka"]
[Date "2024.02.07"]
[Round "7.10"]
[White "Chowdhury, Sohel"]
[Black "Pranav Vijay"]
[Result "0-1"]
[ECO "C76"]
[WhiteElo "1956"]
[BlackElo "2252"]
[Annotator "RC"]
[PlyCount "120"]
[EventDate "2024.02.01"]
[EventCountry "BAN"]
[SourceTitle "playchess.com"]
[Source "ChessBase"]
[SourceQuality "1"]
[TimeControl "40/5400+30:1800+30"]

1. e4 {[%emt 0:01:06]} e5 {[%emt 0:00:09]} 2. Nf3 {[%emt 0:00:10]} Nc6 {[%emt 0:00:06]} 3. Bb5 {[%emt 0:00:10]} a6 {[%emt 0:00:07]} 4. Ba4 {[%emt 0:00:07]} d6 {[%emt 0:00:07]} 5. c3 {[%emt 0:00:42]} Bd7 {[%emt 0:00:22]} 6. O-O {[%emt 0:01:55]} g6 {[%emt 1:32:39]} 7. d4 {[%emt 0:01:20]} Bg7 {[%emt 0:00:00]} 8. h3 {[%emt 0:00:05]} Nf6 {[%emt 0:00:00]} 9. Re1 {[%emt 0:01:39]} O-O {[%emt 0:00:00]} 10. d5 {[%emt 0:04:20]} Ne7 {[%emt 0:00:00]} 11. Bb3 {[%emt 0:04:55]} h6 {[%emt 0:00:00]} 12. c4 {[%emt 1:20:01]} Nh7 {[%emt 0:00:00]} 13. Nc3 {[%emt 0:00:00]} f5 {[%emt 0:00:00]} 14. c5 {[%emt 0:00:00]} Kh8 {[%emt 0:00:00]} 15. cxd6 {[%emt 0:00:00]} cxd6 {[%emt 0:00:00]} 16. Be3 {[%emt 0:00:00]} Nf6 {[%emt 0:00:00]} 17. exf5 {[%emt 0:00:00]} gxf5 {[%emt 0:05:30]} 18. Kh2 {[%emt 0:00:00]} Qe8 {[%emt 0:00:00]} 19. Nh4 {[%emt 0:00:00]} Ng6 {[%emt 0:00:00]} 20. Nxg6+ {[%emt 0:00:00]} Qxg6 {[%emt 0:00:00]} 21. g3 {[%emt 0:04:30]} f4 {[%emt 0:00:00]} 22. Bc2 {[%emt 0:00:00]} Qg5 {[%emt 0:00:00]} 23. Bb6 {[%emt 0:01:00]} Rac8 {[%emt 0:00:00]} 24. Qd3 {[%emt 0:00:00]} Qh5 {[%emt 0:03:30]} 25. gxf4 {[%emt 0:00:00]} e4 {[%emt 0:00:00]} 26. Qg3 {[%emt 0:01:30]} Rg8 {[%emt 0:00:00]} 27. Bd1 {[%emt 0:00:00]} Qf7 {[%emt 0:01:30]} 28. Qh4 {[%emt 0:00:00]} Rc4 {[%emt 0:00:00]} 29. Be3 {[%emt 0:00:00]} Kh7 {[%emt 0:00:00]} 30. Rg1 {[%emt 0:00:00]} b5 {[%emt 0:01:30]} 31. a3 {[%emt 0:00:00]} a5 {[%emt 0:00:00]} 32. Be2 {[%emt 0:00:00]} Rcc8 {[%emt 0:01:00]} 33. Bg4 {[%emt 0:00:00]} Rce8 {[%emt 0:00:00]} 34. Rg2 {[%emt 0:00:00]} Bf8 {[%emt 0:00:00]} 35. Bxd7 {[%emt 0:00:00]} Rxg2+ {[%emt 0:00:00]} 36. Kxg2 {[%emt 0:00:00]} Nxd7 {[%emt 0:00:00]} 37. Kh1 {[%emt 0:05:30]} Nf6 {[%emt 0:00:00]} 38. Rg1 {[%emt 0:00:00]} b4 {[%emt 0:01:36]} 39. axb4 {[%emt 0:00:00]} axb4 {[%emt 0:00:01]} 40. Ne2 {[%emt 0:01:30]} Nxd5 {[%emt 0:00:53]} 41. Qg4 {[%emt 0:28:14]} Bg7 {[%emt 0:03:02]} 42. b3 {[%emt 0:00:00]} Rg8 {[%emt 0:06:50]} 43. f5 {[%emt 0:03:16]} Nxe3 {[%emt 0:09:28]} 44. fxe3 {[%emt 0:00:00]} Bf6 {[%emt 0:00:44]} 45. Qxe4 {[%emt 0:00:00]} Re8 {[%emt 0:13:56]} 46. Qxb4 {[%emt 0:00:00]} Rxe3 {[%emt 0:00:30]} 47. Qg4 {[%emt 0:00:00]} Bg5 {[%emt 0:00:00]} 48. Rg2 {[%emt 0:00:00]} Qxb3 {[%emt 0:00:00]} 49. Ng1 {[%emt 0:03:00]} Qd5 {[%emt 0:00:38]} 50. f6 {[%emt 0:00:00]} Kg6 {[%emt 0:00:42]} 51. Qd7 {[%emt 0:00:00]} Rg3 {[%emt 0:01:10]} 52. Qe8+ {[%emt 0:00:01]} Kxf6 {[%emt 0:00:00]} 53. Qf8+ {[%emt 0:00:54]} Kg6 {[%emt 0:00:07]} 54. Qe8+ {[%emt 0:00:35]} Kg7 {[%emt 0:00:06]} 55. Qd7+ {[%emt 0:00:23]} Kf8 {[%emt 0:00:40]} 56. Nf3 {[%emt 0:00:53]} Rxf3 {[%emt 0:00:21]} 57. Qc8+ {[%emt 0:00:32]} Kg7 {[%emt 0:00:15]} 58. h4 {[%emt 0:00:01]} Rf2 {[%emt 0:00:51]} 59. Qd7+ {[%emt 0:00:28]} Kf8 {[%emt 0:00:13]} 60. Qc8+ {[%emt 0:00:35]} Kf7 {[%emt 0:00:04]} 0-1

[Event "Bangabandhu Premier Div League 2023-24"]
[Site "Dhaka"]
[Date "2024.02.07"]
[Round "7.11"]
[White "Murshed, Niaz"]
[Black "Sajidul, Haque"]
[Result "1-0"]
[ECO "D43"]
[WhiteElo "2363"]
[BlackElo "1922"]
[Annotator "RC"]
[PlyCount "175"]
[EventDate "2024.02.01"]
[EventCountry "BAN"]
[SourceTitle "playchess.com"]
[Source "ChessBase"]
[SourceQuality "1"]
[TimeControl "40/5400+30:1800+30"]

1. Nf3 {[%emt 0:00:27]} Nf6 {[%emt 0:00:27]} 2. d4 {[%emt 0:00:23]} d5 {[%emt 0:00:08]} 3. c4 {[%emt 0:00:04]} e6 {[%emt 0:00:09]} 4. Nc3 {[%emt 0:01:22]} dxc4 {[%emt 0:00:16]} 5. Qa4+ {[%emt 0:01:12]} Nbd7 {[%emt 0:00:56]} 6. e4 {[%emt 0:02:35]} c6 {[%emt 0:03:40]} 7. Qxc4 {[%emt 0:00:49]} Nb6 {[%emt 0:00:08]} 8. Qb3 {[%emt 0:01:44]} Be7 {[%emt 0:01:16]} 9. Bf4 {[%emt 0:05:13]} a5 {[%emt 0:04:51]} 10. a3 {[%emt 1:21:41]} h6 {[%emt 1:23:39]} 11. Rd1 {[%emt 0:00:00]} O-O {[%emt 0:00:00]} 12. Bd3 {[%emt 0:00:00]} Re8 {[%emt 0:00:00]} 13. Bb1 {[%emt 0:00:00]} Nbd7 {[%emt 0:00:00]} 14. h3 {[%emt 0:00:00]} Nf8 {[%emt 0:00:00]} 15. O-O {[%emt 0:00:00]} Ng6 {[%emt 0:00:00]} 16. Bh2 {[%emt 0:00:00]} b5 {[%emt 0:03:00]} 17. Rfe1 {[%emt 0:00:00]} a4 {[%emt 0:00:00]} 18. Qc2 {[%emt 0:00:00]} Bb7 {[%emt 0:01:00]} 19. Ne5 {[%emt 0:00:00]} Nxe5 {[%emt 0:00:00]} 20. Bxe5 {[%emt 0:00:00]} Nd7 {[%emt 0:00:00]} 21. Bg3 {[%emt 0:05:30]} b4 {[%emt 0:00:00]} 22. axb4 {[%emt 0:00:00]} Bxb4 {[%emt 0:00:00]} 23. Re3 {[%emt 0:00:00]} Qa5 {[%emt 0:00:00]} 24. e5 {[%emt 0:00:00]} Nf8 {[%emt 0:00:00]} 25. Ne4 {[%emt 0:00:00]} c5 {[%emt 0:00:00]} 26. dxc5 {[%emt 0:00:00]} Bd5 {[%emt 0:00:00]} 27. Rc1 {[%emt 0:00:00]} Rec8 {[%emt 0:00:00]} 28. Qe2 {[%emt 0:00:00]} Bxc5 {[%emt 0:00:00]} 29. Rec3 {[%emt 0:00:00]} Bxe4 {[%emt 0:00:00]} 30. Qxe4 {[%emt 0:00:00]} Ra7 {[%emt 0:00:00]} 31. Kh2 {[%emt 0:00:00]} Rac7 {[%emt 0:00:00]} 32. Rc4 {[%emt 0:00:00]} Bb6 {[%emt 0:00:00]} 33. Rxc7 {[%emt 0:00:27]} Rxc7 {[%emt 0:00:00]} 34. Rxc7 {[%emt 0:00:37]} Bxc7 {[%emt 0:00:00]} 35. Bc2 {[%emt 0:00:56]} a3 {[%emt 0:00:00]} 36. bxa3 {[%emt 0:00:11]} Qxa3 {[%emt 0:00:00]} 37. h4 {[%emt 0:00:14]} Bd8 {[%emt 0:01:14]} 38. h5 {[%emt 0:00:13]} Be7 {[%emt 0:00:40]} 39. f4 {[%emt 0:01:56]} Qc1 {[%emt 0:01:41]} 40. Bf2 {[%emt 0:00:41]} Qd2 {[%emt 0:01:02]} 41. Be1 {[%emt 0:32:12]} Qc1 {[%emt 0:30:43]} 42. Bf2 {[%emt 0:00:00]} Qd2 {[%emt 0:00:00]} 43. Bg1 {[%emt 0:00:00]} Ba3 {[%emt 0:00:00]} 44. Kh3 {[%emt 0:00:00]} Qc3+ {[%emt 0:00:00]} 45. Qd3 {[%emt 0:00:00]} Qa1 {[%emt 0:00:00]} 46. Bb1 {[%emt 0:00:00]} Qb2 {[%emt 0:00:00]} 47. Be3 {[%emt 0:00:00]} Bb4 {[%emt 0:00:00]} 48. g3 {[%emt 0:00:00]} Qa1 {[%emt 0:00:00]} 49. Bd4 {[%emt 0:00:00]} Qa8 {[%emt 0:00:00]} 50. Kh2 {[%emt 0:00:00]} Qd5 {[%emt 0:00:00]} 51. Qe3 {[%emt 0:00:00]} Qb5 {[%emt 0:00:21]} 52. Bd3 {[%emt 0:00:00]} Qd5 {[%emt 0:00:39]} 53. Be4 {[%emt 0:00:00]} Qb5 {[%emt 0:00:54]} 54. Bc2 {[%emt 0:00:21]} Qc4 {[%emt 0:01:42]} 55. Bb3 {[%emt 0:00:52]} Qf1 {[%emt 0:01:21]} 56. g4 {[%emt 0:00:28]} Qe1 {[%emt 0:01:04]} 57. Qxe1 {[%emt 0:00:42]} Bxe1 {[%emt 0:08:09]} 58. f5 {[%emt 0:00:06]} Bd2 {[%emt 0:00:00]} 59. Kg2 {[%emt 0:00:31]} Bc1 {[%emt 0:00:00]} 60. Bc5 {[%emt 0:04:16]} Bb2 {[%emt 0:00:00]} 61. Bd6 {[%emt 0:00:01]} Bc3 {[%emt 0:00:00]} 62. Kf2 {[%emt 0:01:44]} Bd4+ {[%emt 0:00:12]} 63. Ke2 {[%emt 0:00:06]} Bb2 {[%emt 0:00:43]} 64. Kd3 {[%emt 0:01:25]} Bc1 {[%emt 0:00:20]} 65. Bc4 {[%emt 0:01:16]} Bf4 {[%emt 0:00:20]} 66. Kd4 {[%emt 0:00:44]} Bg3 {[%emt 0:00:02]} 67. Kc3 {[%emt 0:00:55]} Bf2 {[%emt 0:03:23]} 68. Kb4 {[%emt 0:00:50]} Bg3 {[%emt 0:00:00]} 69. Kb5 {[%emt 0:00:15]} Bf4 {[%emt 0:00:00]} 70. Kc6 {[%emt 0:00:05]} Bd2 {[%emt 0:00:00]} 71. Be7 {[%emt 0:01:44]} Bc3 {[%emt 0:00:00]} 72. Bd6 {[%emt 0:00:07]} Bd2 {[%emt 0:00:00]} 73. Bc5 {[%emt 0:00:08]} Bc3 {[%emt 0:00:00]} 74. Kd6 {[%emt 0:00:09]} exf5 {[%emt 0:02:57]} 75. gxf5 {[%emt 0:00:22]} Bb2 {[%emt 0:00:24]} 76. Ke7 {[%emt 0:01:44]} Bxe5 {[%emt 0:00:34]} 77. Bxf7+ {[%emt 0:00:05]} Kh8 {[%emt 0:00:19]} 78. Kxf8 {[%emt 0:02:07]} Bf6 {[%emt 0:00:23]} 79. Bc4 {[%emt 0:00:00]} Kh7 {[%emt 0:00:13]} 80. Kf7 {[%emt 0:00:00]} Kh8 {[%emt 0:00:36]} 81. Bd6 {[%emt 0:00:00]} Kh7 {[%emt 0:00:33]} 82. Ke6 {[%emt 0:00:00]} Kh8 {[%emt 0:00:55]} 83. Be5 {[%emt 0:00:00]} Bxe5 {[%emt 0:00:20]} 84. Kxe5 {[%emt 0:00:00]} Kh7 {[%emt 0:00:07]} 85. Ke6 {[%emt 0:00:00]} Kg8 {[%emt 0:00:35]} 86. Ke7+ {[%emt 0:00:00]} Kh7 {[%emt 0:00:29]} 87. Kf8 {[%emt 0:00:00]} Kh8 {[%emt 0:00:16]} 88. Bg8 {[%emt 0:00:00]} 1-0

[Event "Bangabandhu Premier Div League 2023-24"]
[Site "Dhaka"]
[Date "2024.02.07"]
[Round "7.12"]
[White "Suvradeepta, Das"]
[Black "Narayanan, Srinath"]
[Result "1/2-1/2"]
[ECO "B12"]
[WhiteElo "2141"]
[BlackElo "2552"]
[Annotator "TA"]
[PlyCount "54"]
[EventDate "2024.02.01"]
[EventCountry "BAN"]
[SourceTitle "playchess.com"]
[Source "ChessBase"]
[SourceQuality "1"]
[TimeControl "40/5400+30:1800+30"]

{[%evp 9,54,0,0,0,0,-7,0,0,-4,-14,0,0,25,21,70,81,84,2,38,6,31,49,39,0,0,0,0,0,0,0,0,0,0,0,0,0,0,0,0,0,0,0,0,0,0,0,0]} 1. e4 {[%emt 0:00:05]} c6 {[%emt 0:00:40]} 2. d4 {[%emt 0:00:11]} d5 {[%emt 0:00:04]} 3. e5 {[%emt 0:00:39]} c5 {[%emt 0:00:07]} 4. c3 {[%emt 0:01:23]} Nc6 {[%emt 0:00:43]} 5. Nf3 {[%emt 0:17:32]} cxd4 {[%emt 0:00:49]} 6. cxd4 {[%emt 0:00:06]} Bg4 {[%emt 0:00:12]} 7. Bb5 {[%emt 0:08:48]} Qb6 {[%emt 0:12:22]} 8. Nc3 {[%emt 0:02:58]} e6 {[%emt 0:01:10]} 9. Be3 {[%emt 0:08:47]} a6 {[%emt 0:13:38]} 10. Bxc6+ {[%emt 0:09:22]} bxc6 {[%emt 0:00:48]} 11. O-O {[%emt 0:06:00]} Qxb2 {[%emt 0:01:34] [#]} (11... Ne7 $11) 12. Qa4 $1 $14 {[%emt 0:12:28]} Qb7 {[%emt 0:03:20]} (12... Qxc3 $2 13. Rfc1 f6 14. Rxc3 $18) (12... Rc8 13. Qxa6) 13. Rfc1 {[%emt 0:02:31] White is more active.} (13. Rab1 $16 Qc7 14. Rfc1 Bxf3 15. gxf3) 13... Bxf3 {[%emt 0:08:42]} 14. gxf3 {[%emt 0:00:05]} Ne7 {[%emt 0:00:27]} 15. Rab1 {[%emt 0:01:04][%cal Ba1b1,Bb1b6,Bb6c6,Bc6c7,Bc7a7][%mdl 32]} Qd7 {[%emt 0:01:06]} 16. Rb6 {[%emt 0:26:31]} Nf5 {[%emt 0:03:21] The position is equal.} 17. Rxc6 {[%emt 0:00:00][%cal Oc3d5] [#] Black must now prevent Nxd5!} Be7 $1 {[%emt 0:02:05]} ({Not} 17... Ba3 $2 18. Nxd5 O-O (18... Bxc1 $2 {is the wrong capture.} 19. Nb6 $18) 19. Nb6 $18 (19. Qxa3 Qxd5 20. Kg2 h6 $17)) 18. Rc7 {[%emt 0:01:00]} Qxa4 {[%emt 0:09:50]} 19. Nxa4 {[%emt 0:00:00][%cal Bc3a4,Ba4b6,Bb6d7,Bd7c5][%mdl 32]} O-O {[%emt 0:00:18]} 20. Nb6 {[%emt 0:00:00]} Rad8 {[%emt 0:00:47]} 21. Ra7 {[%emt 0:00:00]} Bb4 {[%emt 0:38:57]} 22. Rcc7 {[%emt 0:00:00]} ({Don't play} 22. Rxa6 Nxe3 23. fxe3 Bd2 $17) 22... a5 {[%emt 0:00:00]} 23. Nd7 {[%emt 0:00:26]} Rfe8 {[%emt 0:00:00]} 24. Nc5 {[%emt 0:02:34]} Rf8 {[%emt 0:00:00]} 25. Nd7 {[%emt 0:00:00]} Rfe8 {[%emt 0:00:00]} 26. Nc5 {[%emt 0:00:00]} Rf8 {[%emt 0:00:00]} 27. Nd7 {[%emt 0:00:00]} Rfe8 {[%emt 0:00:00] Weighted Error Value: White=0.09 (flawless) /Black=0.07 (flawless) .  Mistake:       	White=1     	Black=1      Inaccurate:     	White=2     	Black=1      OK:         	White=14    	Black=11     Best:        	---       	Black=1      Strong:       	---       	Black=1} 1/2-1/2

[Event "Bangabandhu Premier Div League 2023-24"]
[Site "Dhaka"]
[Date "2024.02.08"]
[Round "8.1"]
[White "Mohammad Minhaz Uddin"]
[Black "Abu Sufian, Shakil"]
[Result "1-0"]
[ECO "B50"]
[WhiteElo "2224"]
[BlackElo "2199"]
[Annotator "TA"]
[PlyCount "53"]
[EventDate "2024.02.01"]
[EventCountry "BAN"]
[SourceTitle "playchess.com"]
[Source "ChessBase"]
[SourceQuality "1"]
[TimeControl "40/5400+30:1800+30"]

{[%evp 19,53,16,23,-10,0,-10,0,0,0,0,14,-13,72,82,79,96,87,86,160,162,208,206,194,198,195,145,194,187,289,291,622,611,704,666,585,538]} 1. e4 {[%emt 0:00:04]} c5 {[%emt 0:00:03]} 2. Nf3 {[%emt 0:00:08]} Nc6 {[%emt 0:00:02]} 3. c3 {[%emt 0:00:27]} Nf6 {[%emt 0:00:30]} 4. Bd3 {[%emt 0:00:05]} d6 {[%emt 0:00:36][%cal Bd7d6,Bd6d5][%mdl 32]} 5. h3 {[%emt 0:00:04]} g6 {[%emt 0:00:27]} 6. O-O {[%emt 0:00:10]} Bg7 {[%emt 0:00:06]} 7. Bc2 {[%emt 0:00:07]} O-O {[%emt 0:00:15]} 8. d4 {[%emt 1:33:25]} cxd4 {[%emt 0:07:54]} 9. cxd4 {[%emt 0:00:00]} d5 {[%emt 0:01:23]} 10. e5 {[%emt 0:00:00]} Ne4 {[%emt 1:24:14]} 11. a3 {[%emt 0:01:30]} f6 {[%emt 0:00:30]} 12. exf6 {[%emt 0:00:00]} exf6 {[%emt 0:00:30][%cal Be7f6,Bf6f5,Bf5f4][%mdl 32]} 13. Re1 {[%emt 0:01:00] The position is equal.} f5 {[%emt 0:00:00]} 14. Nc3 {[%emt 0:00:00][%cal Oc3d5]} Kh8 {[%emt 0:01:00]} 15. Ba4 {[%emt 0:01:00]} Nxc3 {[%emt 0:00:00]} (15... g5 $11 {keeps the balance.}) 16. bxc3 $16 {[%emt 0:00:00]} f4 {[%emt 0:01:00]} 17. Bxc6 {[%emt 0:00:00]} bxc6 {[%emt 0:00:00]} 18. a4 {[%emt 0:01:30]} Ba6 {[%emt 0:00:00]} (18... Bf5 $142) 19. Ba3 {[%emt 0:00:00]} Re8 {[%emt 0:01:30]} (19... Rf7 $142 20. Ne5 Rf5 21. Nxc6 Qd7) 20. Rxe8+ $18 {[%emt 0:00:00]} Qxe8 {[%emt 0:00:00] [#]} 21. Qd2 {[%emt 0:01:30]} Qf7 {[%emt 0:01:00] [#]} 22. Bd6 {[%emt 0:00:30]} (22. Re1 $1 $18) 22... Bh6 {[%emt 0:00:30] Black is weak on the dark squares} (22... Re8 $16 {was worth a try.} 23. Qxf4 (23. Bxf4 Re2 $18) 23... Qxf4 24. Bxf4 Kg8) 23. Re1 {[%emt 0:00:30] Re7 is the strong threat.} Qf5 {[%emt 0:00:30]} (23... Re8 {is a better defense.} 24. Ne5 Qf6) 24. Re7 {[%emt 0:00:00]} Qb1+ $2 {[%emt 0:00:30]} (24... Kg8 25. Qe1 Bf8) 25. Kh2 {[%emt 0:00:00] Active counter play! White is clearly winning.} g5 {[%emt 0:00:30]} 26. Be5+ {[%emt 0:00:00]} Kg8 {[%emt 0:00:00]} 27. Re6 {Against Qg6. White took control after the opening.   Weighted Error Value: White=0.06 (flawless) /Black=0.71.  Mistake:       	White=1     	Black=6      Inaccurate:     	White=1     	---        OK:         	White=8     	Black=1      Best:        	White=2     	---} 1-0

[Event "Bangabandhu Premier Div League 2023-24"]
[Site "Dhaka"]
[Date "2024.02.08"]
[Round "8.1"]
[White "Mehdi Hasan Parag"]
[Black "Alam, Monjur"]
[Result "1-0"]
[ECO "C02"]
[WhiteElo "2171"]
[BlackElo "1875"]
[Annotator "TA"]
[PlyCount "111"]
[EventDate "2024.02.01"]
[EventCountry "BAN"]
[SourceTitle "playchess.com"]
[Source "ChessBase"]
[SourceQuality "1"]
[TimeControl "40/5400+30:1800+30"]

{[%evp 19,111,0,0,-7,10,0,27,34,63,58,73,47,102,106,175,83,79,67,86,89,117,127,114,104,149,133,112,114,161,122,194,189,170,159,247,230,258,178,216,164,170,143,149,139,145,142,158,100,181,170,359,328,341,263,272,264,379,366,377,380,606,549,566,583,524,538,538,511,526,514,515,545,2487,958,933,956,960,966,948,947,1329,1303,1201,1186,1500,1496,1469,1433,5489,1809,1559,1276,1333,1301]} 1. e4 {[%emt 0:00:05]} e6 {[%emt 0:06:47]} 2. d4 {[%emt 0:00:07]} d5 {[%emt 0:00:07]} 3. e5 {[%emt 0:00:09]} c5 {[%emt 0:00:13]} 4. c3 {[%emt 0:00:10]} Nc6 {[%emt 0:00:23]} 5. Nf3 {[%emt 0:00:07]} Nge7 {[%emt 0:00:55]} 6. Na3 {[%emt 0:00:30]} Nf5 {[%emt 0:01:10]} 7. Nc2 {[%emt 0:00:16]} cxd4 {[%emt 0:00:39]} 8. cxd4 {[%emt 0:00:08]} Qb6 {[%emt 0:01:25]} 9. Be2 {[%emt 0:00:19]} Bd7 {[%emt 0:01:44]} 10. O-O {[%emt 0:00:08]} Rc8 {[%emt 0:01:07]} 11. Kh1 {[%emt 0:00:16]} h5 {[%emt 0:04:39]} 12. Bd2 {[%emt 0:03:35][%cal Ob2b4]} Nb4 {[%emt 0:07:48]} (12... Ncxd4 $2 13. Ncxd4 Nxd4 14. Be3 $18) 13. Ne3 {[%emt 0:03:20] White has an edge.} Nc6 {[%emt 0:11:54]} 14. Nxf5 {[%emt 0:02:15]} exf5 {[%emt 0:00:08]} 15. Rb1 {[%emt 0:02:20][%cal Ob2b4]} Be6 {[%emt 0:01:36] [#]} (15... Nd8 $14) 16. b4 $1 $16 {[%emt 0:00:30][%mdl 512]} a6 {[%emt 0:03:22]} (16... Bd7 $16 {might work better.}) (16... Be7 17. Qa4) 17. a3 {[%emt 0:00:18]} (17. b5 $18 {has better winning chances.} axb5 18. Rxb5 (18. Bxb5 Be7 $16)) 17... Be7 {[%emt 0:00:20]} 18. Be3 {[%emt 0:02:15]} g6 {[%emt 0:10:33]} 19. Qd2 {[%emt 0:00:31]} Kf8 {[%emt 0:02:20]} 20. Bh6+ {[%emt 0:01:32]} Kg8 {[%emt 0:01:23]} 21. Rfd1 {[%emt 0:00:42]} Rh7 {[%emt 0:07:55]} 22. Rbc1 {[%emt 0:01:31]} Qd8 {[%emt 0:00:39]} 23. Bg5 {[%emt 0:07:34]} Rg7 {[%emt 0:08:04]} (23... Rh8 $16 24. h4 Kg7) 24. Rc5 {[%emt 0:06:06]} f6 {[%emt 0:10:49]} (24... Bxg5 $16 25. Qxg5 (25. Nxg5 Nxd4 26. Nxe6 Nxe6 $16) 25... Qxg5 26. Nxg5 Kh8) 25. exf6 $18 {[%emt 0:01:49]} Bxf6 {[%emt 0:02:30]} 26. Rdc1 {[%emt 0:01:00][%cal Oe2a6]} Rgc7 {[%emt 0:04:13]} (26... Na7 $16 27. Re1 Rd7 28. Bxa6 Bxg5 29. Nxg5 Bf7) 27. Bf4 {[%emt 0:00:37]} Rg7 {[%emt 0:03:02]} 28. Ng5 {[%emt 0:03:23]} Qd7 {[%emt 0:01:38]} 29. Bf3 {[%emt 0:01:27] Black must now prevent Nxe6.} Rd8 {[%emt 0:00:44]} 30. h4 {[%emt 0:13:37]} Re7 {[%emt 0:03:44]} 31. Be3 {[%emt 0:01:49] White is more active.} Kg7 {[%emt 0:00:40]} 32. a4 {[%emt 0:01:37]} Bg8 {[%emt 0:01:59][%cal Of5f4]} 33. g3 {[%emt 0:02:51]} (33. Nh3 $142 {Hoping for b5.} Rde8 34. Nf4) 33... Rde8 {[%emt 0:00:51]} (33... f4 $16 34. Bxf4 (34. gxf4 $2 {too greedy.} Bxg5 35. Bg2 Bxh4 $19) 34... Nxd4) 34. Nh3 {[%emt 0:01:11]} Rd8 $2 {[%emt 0:01:27]} (34... Qd8 35. Nf4 Rd7) 35. Kg2 {[%emt 0:43:55]} Qe8 {[%emt 0:00:18]} 36. Nf4 {[%emt 0:00:00]} Red7 {[%emt 0:00:12]} 37. b5 {[%emt 0:00:00]} Nb8 {[%emt 0:00:41]} (37... Ne7 $142 38. a5 axb5) 38. Nd3 {[%emt 0:00:00]} b6 {[%emt 0:00:44]} 39. R5c2 {[%emt 0:02:00]} a5 {[%emt 0:00:19]} (39... axb5 $142 40. axb5 Bh7 41. Bh6+ Kh8) 40. Bh6+ {[%emt 0:00:00] White is clearly winning.} Kh7 {[%emt 0:00:24]} 41. Bg5 {[%emt 0:00:00]} Qf8 {[%emt 0:02:53]} 42. Ne5 {[%emt 0:00:00]} Re7 {[%emt 0:04:28]} 43. Qd1 {[%emt 0:00:00]} Bxg5 {[%emt 0:02:30]} 44. hxg5 {[%emt 0:00:00][%cal Of3h5]} Qe8 {[%emt 0:02:13]} 45. Rc7 {[%emt 0:00:00][%cal Of3h5] Threatens to win with Bxh5! Black is weak on the dark squares} Be6 {[%emt 0:03:26] [#]} 46. Nxg6 $1 {[%emt 0:00:00][%mdl 512]} Rxc7 {[%emt 0:07:18]} 47. Rxc7+ {[%emt 0:00:00]} Rd7 {[%emt 0:00:20]} 48. Rxd7+ {[%emt 0:00:00]} Nxd7 {[%emt 0:00:22]} 49. Nf4 {[%emt 0:00:00][%cal Bg6f4,Bf4d5,Bd5f6][%mdl 32]} Bf7 {[%emt 0:05:13]} 50. Qc2 {[%emt 0:00:00]} Nf8 {[%emt 0:03:09]} 51. Qxf5+ {[%emt 0:00:00]} Kg8 {[%emt 0:00:19]} 52. Nxd5 {[%emt 0:00:00] Nf6+ would kill now.} Qd8 {[%emt 0:00:59]} 53. Nf6+ {[%emt 0:00:00]} Kg7 {[%emt 0:04:24]} 54. d5 {[%emt 0:00:00]} h4 {[%emt 0:00:00]} 55. Nh5+ {[%emt 0:00:00]} Kg8 {[%emt 0:00:00]} 56. Qf6 {[%emt 0:00:00] Weighted Error Value: White=0.20 (precise) /Black=0.38.  Mistake:       	White=3     	Black=9      Inaccurate:     	White=2     	Black=5      OK:         	White=15    	Black=9      Best:        	---       	Black=2} 1-0